bitfinex/quotes_ETHUSD_20260203
["timestamp","ask_amount","ask_price","bid_price","bid_amount"]
[1770138033601,0.9195265,2242.8,2241.7,0.56501912]
[1770138033762,0.9195265,2242.7,2241.7,0.55831611]
[1770138033964,0.9195265,2242.6,2241.5,1.11529403]
[1770138034164,1.11462838,2242.9,2241.6,0.935]
[1770138034364,0.91933914,2242.8,2241.6,0.935]
[1770138034793,0.91933914,2242.8,2241.4,1.11534566]
[1770138034988,1.11472778,2242.7,2241.5,0.935]
[1770138035192,1.11472778,2242.7,2241.7,0.00670301]
[1770138035193,0.91933914,2242.6,2241.7,0.00670301]
[1770138035388,1.11472778,2242.7,2241.7,0.00670301]
[1770138035592,1.00300824,2243.2,2242.0,0.00670301]
[1770138035885,1.1143031,2243.6,2242.7,0.00670301]
[1770138036090,0.55707165,2243.7,2242.8,0.935]
[1770138036301,1.11423383,2243.7,2242.8,0.935]
[1770138036609,0.0011,2243.3,2242.8,0.935]
[1770138037331,0.0011,2243.3,2242.8,2.04966948]
[1770138037475,4.45659832,2243.9,2242.8,2.04966948]
[1770138037666,0.92076101,2243.8,2242.8,2.04966948]
[1770138037866,0.64913847,2243.8,2242.9,0.65151452]
[1770138038093,0.92060983,2243.7,2242.9,0.65151452]
[1770138038298,0.64913847,2243.8,2242.9,0.65151452]
[1770138038476,0.92064017,2243.7,2242.9,0.65151452]
[1770138038695,0.64913847,2243.8,2242.8,0.935]
[1770138038999,1.11428062,2243.6,2242.8,0.935]
[1770138039199,0.92157178,2243.5,2242.8,2.04967348]
[1770138039410,1.11428062,2243.6,2242.8,2.04967348]
[1770138039590,1.47871299,2243.5,2242.8,2.04967348]
[1770138039915,0.55714031,2243.5,2242.8,2.04967348]
[1770138040112,0.55714031,2243.5,2242.8,0.935]
[1770138040492,0.55714031,2243.5,2242.8,2.04967505]
[1770138040916,1.11426481,2243.7,2242.8,2.04967505]
[1770138041217,0.92228289,2243.6,2242.8,2.04967505]
[1770138041418,1.54208178,2244.1,2243.0,0.00670301]
[1770138041594,0.00755713,2244.1,2243.0,0.00670301]
[1770138041794,1.38731048,2244.1,2243.0,1.45969404]
[1770138042326,0.27327702,2244.1,2243.1,0.00670301]
[1770138042621,0.00755713,2244.1,2243.2,12.4668292]
[1770138042818,1.53452465,2244.7,2243.6,12.4668292]
[1770138043117,0.0011,2244.8,2243.9,0.00670301]
[1770138043316,0.0011,2244.8,2244.0,1.11408199]
[1770138043830,0.0011,2244.8,2244.0,1.67112299]
[1770138044010,0.0011,2244.8,2244.0,14.13795219]
[1770138044315,1.53452465,2244.8,2243.9,1.11413089]
[1770138044491,1.53562465,2245.0,2243.9,1.11413089]
[1770138044906,0.0011,2245.0,2243.9,1.11413089]
[1770138045399,0.0011,2245.0,2243.9,1.1208339]
[1770138045599,0.0011,2245.0,2243.9,1.11413089]
[1770138045804,0.71143129,2245.0,2243.9,1.11413089]
[1770138046409,0.71143129,2245.0,2243.9,13.58096009]
[1770138046717,0.0011,2245.0,2244.0,12.4668292]
[1770138046940,0.0011,2245.0,2244.1,0.934]
[1770138047429,0.0011,2245.0,2244.1,2.04800533]
[1770138047932,0.0011,2245.0,2244.1,2.04803102]
[1770138048640,0.0011,2244.8,2244.1,2.04803102]
[1770138048846,0.0011,2244.8,2244.2,0.6510899]
[1770138049515,0.0011,2244.8,2244.2,1.76503661]
[1770138050241,0.0011,2244.8,2244.1,2.04803222]
[1770138050543,0.0011,2244.8,2243.7,1.11421138]
[1770138050741,0.0011,2244.8,2243.8,1.11417608]
[1770138050917,0.0011,2244.8,2244.0,1.11407938]
[1770138051115,0.0011,2244.8,2243.8,1.11417774]
[1770138051317,0.0011,2244.8,2243.7,0.934]
[1770138051318,0.0011,2244.8,2243.7,2.04819277]
[1770138051618,0.0011,2244.8,2243.7,2.69871549]
[1770138053346,0.92143868,2244.7,2243.7,2.69871549]
[1770138053547,0.92144672,2244.6,2243.7,2.69871549]
[1770138053717,0.0011,2244.8,2243.7,1.58452272]
[1770138054071,0.92143469,2244.7,2243.8,0.934]
[1770138054232,0.92143469,2244.6,2243.8,0.934]
[1770138054429,0.92143469,2244.5,2243.8,0.934]
[1770138054754,12.78446725,2244.8,2243.8,0.934]
[1770138054936,2.35331162,2244.7,2243.8,0.934]
[1770138055140,0.92141243,2244.6,2243.8,0.934]
[1770138055539,1.11383381,2244.5,2243.8,2.04816651]
[1770138055852,1.11383381,2244.5,2243.8,0.934]
[1770138057847,1.11478496,2244.8,2243.8,0.934]
[1770138058048,15.94984237,2244.7,2243.5,1.11429077]
[1770138058242,0.92154552,2244.6,2243.5,2.04829077]
[1770138058838,0.92154552,2244.6,2243.5,0.934]
[1770138059244,2.45607017,2244.6,2243.5,0.934]
[1770138059445,17.76842166,2244.5,2243.2,2.0484513]
[1770138059628,0.92154552,2244.4,2243.2,2.0484513]
[1770138059955,2.03547859,2244.3,2243.2,2.048449]
[1770138060259,0.92154552,2244.2,2243.2,2.048449]
[1770138060441,0.92154552,2244.1,2243.2,2.048449]
[1770138060643,1.11393307,2244.3,2243.2,4.28067033]
[1770138060849,0.9222359,2244.2,2243.2,4.28067033]
[1770138061032,0.9222359,2244.1,2243.2,4.28067033]
[1770138061232,1.11393307,2244.3,2243.2,4.28067033]
[1770138061545,0.92276512,2244.2,2243.2,4.28067033]
[1770138061746,0.92276512,2244.1,2243.5,0.001]
[1770138061946,1.11396675,2244.3,2243.5,0.001]
[1770138062127,0.92305443,2244.2,2243.5,0.001]
[1770138062327,0.92305443,2244.1,2243.5,0.001]
[1770138062568,0.0011,2244.6,2243.7,12.08959509]
[1770138062734,0.0011,2244.6,2243.8,2.14362981]
[1770138063233,0.92503936,2244.5,2243.8,2.14362981]
[1770138063427,1.11490247,2244.6,2243.8,0.934]
[1770138063629,0.92507729,2244.5,2243.8,0.934]
[1770138063862,1.11490247,2244.6,2243.8,2.04816059]
[1770138064059,0.92531001,2244.5,2243.8,2.04816059]
[1770138064262,0.0011,2244.8,2243.8,14.13775568]
[1770138064461,0.0011,2245.6,2244.6,0.00670301]
[1770138064628,0.0011,2245.8,2244.9,0.00670301]
[1770138064833,1.114309,2245.8,2244.7,0.934]
[1770138065262,0.65851467,2245.7,2244.7,0.934]
[1770138065466,0.65851467,2245.7,2243.9,13.94971348]
[1770138065467,2.31163902,2245.6,2243.9,13.94971348]
[1770138065761,2.31834203,2245.4,2244.0,1.50705771]
[1770138065961,3.42512556,2245.2,2244.0,1.11408199]
[1770138066164,1.11344084,2245.3,2244.0,13.19697407]
[1770138066571,3.42495491,2245.6,2244.2,12.08289208]
[1770138066733,13.89668314,2245.6,2244.3,1.20895951]
[1770138066935,2.31163902,2245.5,2244.0,1.120785]
[1770138067138,16.20832216,2245.6,2244.0,1.120785]
[1770138067538,3.42495491,2245.6,2244.2,0.00670301]
[1770138067765,16.20832216,2245.6,2244.0,1.120785]
[1770138068074,2.31163902,2244.8,2243.5,0.001]
[1770138068247,2.31163902,2244.2,2243.0,2.27977858]
[1770138068450,2.31163902,2243.8,2242.8,0.001]
[1770138068756,15.09500627,2243.8,2242.8,0.001]
[1770138068935,12.78336725,2243.3,2241.9,0.001]
[1770138069140,12.79007026,2242.8,2241.6,0.001]
[1770138069338,2.31834203,2242.7,2241.3,1.11541133]
[1770138069566,16.03570928,2242.6,2241.0,10.934]
[1770138069752,19.0384914,2242.4,2241.0,10.934]
[1770138069963,1.12167937,2242.2,2241.0,10.934]
[1770138070159,1.12167937,2242.2,2241.0,12.04957131]
[1770138070160,16.20998263,2242.2,2241.0,12.04957131]
[1770138070361,13.89834361,2242.2,2241.0,10.934]
[1770138070541,1.83649521,2242.1,2241.1,1.20495961]
[1770138070874,1.11497636,2242.2,2241.1,1.20495961]
[1770138071075,0.00670301,2242.1,2241.1,1.20495961]
[1770138071276,0.00670301,2241.7,2240.5,0.934]
[1770138071438,0.00670301,2241.8,2240.5,0.934]
[1770138071962,0.00670301,2240.6,2239.5,0.23260303]
[1770138072271,0.00670301,2241.6,2240.4,1.11587206]
[1770138072473,1.11522505,2241.7,2240.5,1.11581963]
[1770138072683,1.11522505,2241.7,2240.5,1.115818]
[1770138072840,1.11522505,2241.7,2240.4,1.11583657]
[1770138073148,0.00670301,2241.5,2240.0,1.11606808]
[1770138073348,0.00670301,2241.4,2240.0,1.11607134]
[1770138073552,0.00670301,2241.4,2239.7,5.39882322]
[1770138073752,0.00670301,2241.3,2240.1,1.11599209]
[1770138073951,1.11537431,2241.4,2240.0,12.08959509]
[1770138074151,1.11537431,2241.4,2240.0,0.00670301]
[1770138074353,1.11537431,2241.4,2239.8,4.47118803]
[1770138074354,0.69687417,2241.3,2239.8,13.19904425]
[1770138074575,4.46010576,2242.2,2240.2,12.08959509]
[1770138074776,0.935,2242.0,2240.3,13.01789208]
[1770138075176,0.935,2242.0,2240.3,13.02459509]
[1770138075347,0.935,2242.0,2240.4,0.00670301]
[1770138075554,0.935,2242.0,2241.3,0.001]
[1770138075885,1.11512556,2241.9,2241.3,0.001]
[1770138076056,0.65106278,2241.8,2241.3,0.001]
[1770138076257,1.11512556,2241.9,2241.3,0.001]
[1770138076459,1.1148272,2242.5,2241.3,0.001]
[1770138076767,1.1148272,2242.5,2241.3,0.00770301]
[1770138076963,1.1148272,2242.5,2241.3,0.001]
[1770138077306,1.1148272,2242.5,2241.3,0.00770301]
[1770138077459,1.11462838,2242.9,2241.6,0.00670301]
[1770138077654,1.11462838,2242.9,2241.7,0.00670301]
[1770138077961,2.04960995,2243.0,2241.9,0.00670301]
[1770138078278,17.24085418,2243.5,2241.9,0.00670301]
[1770138078279,4.45768319,2243.4,2242.0,1.12177883]
[1770138078686,1.11423095,2243.7,2242.2,0.00670301]
[1770138078894,0.55717508,2243.6,2242.3,0.00670301]
[1770138079055,0.55717508,2243.6,2242.0,13.1979679]
[1770138079255,0.55717508,2243.6,2242.0,13.20467091]
[1770138079474,0.55717508,2243.6,2242.1,0.00670301]
[1770138079692,0.55717508,2243.6,2242.2,0.00670301]
[1770138079910,1.11388344,2244.4,2243.1,0.00670301]
[1770138080068,4.45480226,2244.8,2243.4,1.12108296]
[1770138080268,4.45480226,2244.8,2243.4,1.11437995]
[1770138080479,0.55684872,2244.7,2243.5,0.55718998]
[1770138080886,0.55684872,2244.7,2243.3,1.11442848]
[1770138081568,0.55684872,2244.7,2243.2,0.00670301]
[1770138081768,0.9153143,2244.6,2243.1,0.935]
[1770138081999,0.9153143,2244.5,2243.1,0.935]
[1770138082174,1.11388344,2244.4,2243.1,2.04952243]
[1770138082390,1.49194172,2244.3,2243.1,2.04952243]
[1770138082702,1.49194172,2244.3,2243.1,0.935]
[1770138082907,1.49194172,2244.3,2243.1,2.04952495]
[1770138084374,1.11398271,2244.2,2243.1,2.04952495]
[1770138085004,1.11398271,2244.2,2243.1,1.11452495]
[1770138085186,0.70618553,2244.1,2243.2,0.55728314]
[1770138086008,1.67087838,2244.3,2243.2,12.43583065]
[1770138086211,1.11393666,2244.3,2243.2,12.43583065]
[1770138086588,1.11378419,2244.6,2243.3,1.12113264]
[1770138087278,1.11378419,2244.6,2243.3,12.99297714]
[1770138089009,1.11378419,2244.6,2243.4,11.87854751]
[1770138089310,1.11378419,2244.6,2243.5,2.23496801]
[1770138089478,1.11378419,2244.6,2243.5,14.11351552]
[1770138089679,1.11348654,2245.2,2243.7,11.8718445]
[1770138089882,0.0011,2245.4,2244.5,11.87854751]
[1770138090098,0.0011,2245.6,2244.7,11.87854751]
[1770138090408,0.0011,2245.6,2244.8,0.00670301]
[1770138090713,0.0011,2245.6,2244.7,1.11373457]
[1770138091014,0.0011,2245.6,2244.8,0.934]
[1770138091322,0.0011,2245.6,2244.2,11.8718445]
[1770138091479,0.0011,2245.6,2244.4,0.934]
[1770138091792,0.0011,2245.6,2244.6,1.11378234]
[1770138092188,0.0011,2245.6,2244.6,1.12048535]
[1770138092387,0.0011,2245.6,2244.7,0.00670301]
[1770138092614,0.0011,2245.6,2244.2,1.18785475]
[1770138092820,0.0011,2245.6,2244.2,3.23579886]
[1770138093183,0.0011,2245.6,2244.3,1.95635742]
[1770138093396,0.0011,2245.6,2244.2,15.10768015]
[1770138093397,0.0011,2245.6,2244.2,13.91981519]
[1770138093626,0.00670301,2245.5,2243.8,4.45671956]
[1770138093802,0.00670301,2245.5,2244.0,1.11405526]
[1770138094196,0.00670301,2245.4,2243.8,2.04814029]
[1770138094393,0.934,2245.3,2244.0,1.1140556]
[1770138094814,1.11348654,2245.2,2244.0,1.1140556]
[1770138095215,0.0011,2245.6,2244.5,0.00670301]
[1770138095422,0.0011,2245.6,2244.6,0.94070301]
[1770138095587,1.11439009,2245.6,2244.6,0.934]
[1770138096103,1.11439009,2245.6,2244.2,11.8718445]
[1770138096293,0.55673603,2245.5,2244.2,1.29926031]
[1770138096500,0.55673603,2245.5,2244.2,11.8718445]
[1770138096689,1.11338736,2245.4,2244.3,1.11393307]
[1770138096890,1.11338736,2245.4,2244.1,0.934]
[1770138097188,1.11338736,2245.4,2244.2,1.11396456]
[1770138097499,1.11338736,2245.4,2243.7,16.32876373]
[1770138097700,0.70643759,2245.3,2243.9,1.11412194]
[1770138097891,0.70643759,2245.3,2244.1,1.11401898]
[1770138098211,0.70643759,2245.3,2243.8,1.63957938]
[1770138098422,0.70643759,2245.3,2243.8,1.63287637]
[1770138098423,12.63450396,2245.1,2243.8,1.63287637]
[1770138098689,0.00670301,2244.8,2243.3,1.11442407]
[1770138098829,0.00670301,2244.8,2243.0,0.934]
[1770138098830,2.04773457,2244.7,2243.0,0.934]
[1770138099027,2.04773457,2244.7,2243.2,1.11447301]
[1770138099028,2.05443758,2244.7,2243.2,1.11447301]
[1770138099229,1.58560789,2244.6,2243.3,0.5572468]
[1770138099435,1.58560789,2244.6,2243.2,1.11447596]
[1770138100329,1.58560789,2244.6,2243.3,11.87854751]
[1770138100330,0.65160789,2244.6,2243.3,11.87854751]
[1770138100913,0.65160789,2244.6,2243.4,12.99292746]
[1770138101110,1.1137614,2244.7,2243.4,12.99292746]
[1770138101111,1.1137614,2244.7,2243.5,0.00670301]
[1770138101300,1.1137614,2244.7,2243.5,11.87854751]
[1770138101495,1.1137614,2244.7,2243.6,0.934]
[1770138101746,4.45462086,2244.9,2244.3,0.001]
[1770138101747,1.11372318,2244.8,2244.3,0.001]
[1770138102236,1.11353614,2245.1,2244.3,0.001]
[1770138102429,0.55687807,2245.0,2244.3,0.001]
[1770138102933,1.11363535,2244.9,2244.0,0.001]
[1770138103239,0.92407005,2244.8,2243.2,1.11542996]
[1770138103401,0.92407005,2244.7,2243.4,1.11437853]
[1770138103600,0.92407005,2244.7,2243.3,1.11438924]
[1770138103601,1.85136704,2244.6,2243.3,1.11438924]
[1770138103809,0.91891839,2244.5,2243.3,1.74451232]
[1770138104041,0.91891839,2244.4,2243.3,1.74451232]
[1770138104330,0.934,2244.6,2243.3,1.74451232]
[1770138104533,2.45393876,2244.6,2243.2,1.11547491]
[1770138104698,0.92113653,2244.5,2243.3,1.11439052]
[1770138104925,1.11388344,2244.4,2243.2,0.001]
[1770138105129,0.92113653,2244.3,2243.2,0.001]
[1770138105324,0.92113653,2244.3,2243.2,1.83895566]
[1770138105965,1.11386143,2244.5,2243.2,13.71750317]
[1770138106149,0.92293989,2244.4,2243.3,0.00670301]
[1770138106338,4.45493829,2244.8,2243.4,11.87854751]
[1770138106643,0.9247762,2244.7,2243.6,11.87854751]
[1770138106840,0.9247762,2244.6,2243.7,2.12252505]
[1770138107043,0.9247762,2244.5,2243.8,1.11418129]
[1770138107241,1.1137622,2244.7,2243.8,1.11418129]
[1770138107445,0.92662236,2244.6,2243.8,1.11418129]
[1770138107665,0.92662236,2244.5,2243.9,0.76934315]
[1770138107837,0.92662236,2244.4,2243.7,3.23674024]
[1770138108036,1.1137622,2244.7,2243.7,3.23674024]
[1770138108235,0.92649873,2244.6,2243.7,2.12252505]
[1770138108541,2.44643749,2244.5,2243.7,0.934]
[1770138108742,0.92649873,2244.4,2243.7,0.934]
[1770138109148,2.0404318,2244.3,2243.7,0.934]
[1770138109461,0.92649873,2244.2,2243.7,0.934]
[1770138109978,0.92649873,2244.1,2243.2,2.95341413]
[1770138110139,0.92649873,2244.0,2243.2,1.11545847]
[1770138110540,0.92649873,2244.0,2243.2,1.11546439]
[1770138110739,0.92649873,2243.9,2243.2,0.001]
[1770138110976,2.44643749,2243.8,2243.2,0.001]
[1770138111263,0.92649873,2243.7,2243.2,0.001]
[1770138111965,0.92649873,2243.6,2243.2,0.001]
[1770138112167,0.92649873,2243.6,2242.6,1.1147552]
[1770138112168,0.92649873,2243.5,2242.6,1.1147552]
[1770138112363,0.92649873,2243.4,2242.5,1.11479408]
[1770138112554,0.92649873,2243.3,2242.3,5.2383388]
[1770138112756,1.51993876,2243.5,2242.3,3.18944047]
[1770138112757,1.51993876,2243.1,2242.3,3.18944047]
[1770138112945,1.40230638,2243.0,2242.3,3.18944047]
[1770138113267,2.04112711,2242.9,2242.3,4.30436643]
[1770138113476,0.92649873,2242.8,2242.3,4.30435543]
[1770138113769,1.11449063,2243.2,2242.3,4.30435543]
[1770138113974,1.11435484,2243.5,2242.3,17.45017261]
[1770138114146,0.92925961,2243.4,2242.4,2.19165822]
[1770138114334,0.92925961,2243.3,2242.4,2.19165822]
[1770138114533,0.92925961,2243.2,2242.4,2.19165822]
[1770138114741,1.11435484,2243.5,2242.4,2.19165822]
[1770138114938,0.92890747,2243.4,2242.5,1.96418308]
[1770138115164,0.92890747,2243.3,2242.6,1.11477749]
[1770138115373,1.11443639,2243.3,2242.6,1.11477749]
[1770138115549,0.928785,2243.2,2242.5,3.07897886]
[1770138115876,1.11443639,2243.3,2242.5,3.07900344]
[1770138116084,0.92905714,2243.2,2242.3,3.18944047]
[1770138116249,0.92905714,2243.1,2242.2,1.1149744]
[1770138116443,0.92905714,2243.0,2242.2,1.1149744]
[1770138116638,0.92905714,2243.0,2241.9,13.13911417]
[1770138116639,0.92905714,2242.9,2242.7,0.001]
[1770138116840,2.63547515,2243.3,2242.7,0.001]
[1770138117158,1.114529,2243.1,2242.7,0.001]
[1770138117360,0.92866033,2243.0,2242.7,0.001]
[1770138117655,1.114529,2243.1,2242.7,0.001]
[1770138117862,0.92749495,2243.0,2242.7,0.001]
[1770138118390,0.92749495,2243.0,2242.5,0.001]
[1770138118590,0.92749495,2242.9,2241.5,12.20511417]
[1770138118879,1.51993876,2242.9,2241.6,1.31391142]
[1770138119047,2.45413672,2242.9,2241.4,0.934]
[1770138119248,1.11472778,2242.7,2241.4,2.04937018]
[1770138119463,0.92749495,2242.6,2241.4,14.25448435]
[1770138119672,0.92749495,2242.5,2241.4,14.25448435]
[1770138119971,1.11472778,2242.7,2241.5,1.87171751]
[1770138120173,0.92569485,2242.6,2241.5,1.87171751]
[1770138120356,0.92569485,2242.5,2241.5,1.87171751]
[1770138120557,1.11472778,2242.7,2241.5,14.07683168]
[1770138120765,1.11472778,2242.7,2241.7,0.00670301]
[1770138120965,2.31273902,2243.3,2241.8,12.21181718]
[1770138120966,1.52103876,2243.3,2241.8,12.21181718]
[1770138121175,0.92697803,2243.2,2242.1,12.21181718]
[1770138121347,1.11553824,2243.3,2242.2,2.04897636]
[1770138121541,0.92849401,2243.2,2242.2,2.04897636]
[1770138121862,1.51993876,2244.1,2243.0,12.20511417]
[1770138122064,1.11381732,2244.6,2243.1,2.15518172]
[1770138122244,2.63375608,2244.6,2243.1,0.934]
[1770138122447,1.52664177,2244.5,2243.1,0.934]
[1770138122646,1.52664177,2244.2,2242.2,1.12167937]
[1770138122858,2.45493876,2244.1,2242.3,13.14681718]
[1770138123257,1.11413164,2243.9,2242.4,1.11487691]
[1770138123456,0.7090597,2243.8,2242.5,1.87212018]
[1770138124182,1.11413164,2243.9,2242.7,12.20511417]
[1770138124648,1.16196018,2244.3,2243.0,12.21181718]
[1770138124975,2.27556947,2245.0,2243.7,0.00670301]
[1770138125174,2.27556947,2245.0,2243.3,0.00670301]
[1770138125175,2.27556947,2245.0,2243.8,0.934]
[1770138125376,2.27556947,2245.0,2242.2,4.46654893]
[1770138125377,1.16196018,2244.7,2242.6,12.20511417]
[1770138125581,1.16196018,2244.6,2243.2,1.11445384]
[1770138125775,1.16196018,2244.6,2242.8,4.45866492]
[1770138125776,1.16866319,2244.3,2242.8,4.45866492]
[1770138125945,1.16196018,2244.1,2243.1,1.11450062]
[1770138126274,1.16196018,2244.1,2243.1,0.55727943]
[1770138126452,1.16196018,2243.9,2242.9,1.11462626]
[1770138126653,1.16196018,2243.9,2243.0,1.11456186]
[1770138127174,1.16196018,2243.9,2242.7,13.61350791]
[1770138127474,2.27585488,2244.4,2243.2,12.21181718]
[1770138127683,2.27585488,2244.4,2243.3,0.934]
[1770138127867,0.37957936,2244.3,2243.3,0.934]
[1770138128068,1.54153954,2244.3,2243.3,0.934]
[1770138128264,0.37957936,2244.3,2243.3,0.934]
[1770138129466,1.49351646,2244.3,2243.4,1.11437995]
[1770138129667,1.1139371,2244.3,2243.4,1.11437995]
[1770138129981,2.27587735,2244.4,2243.4,1.11437995]
[1770138130179,1.16196018,2244.8,2243.6,12.21181718]
[1770138130383,1.16196018,2245.0,2243.8,12.21181718]
[1770138130551,2.05981687,2245.1,2243.8,12.21181718]
[1770138130875,0.94627144,2245.1,2243.9,1.31525202]
[1770138131059,0.0011,2244.4,2243.9,1.31525202]
[1770138131463,0.0011,2244.4,2243.8,1.11418129]
[1770138131653,0.0011,2244.4,2243.4,1.11437947]
[1770138131847,0.0011,2244.4,2243.2,1.11447424]
[1770138131848,0.00670301,2244.3,2243.2,1.11447424]
[1770138132054,0.0011,2244.4,2243.4,1.11437851]
[1770138132280,0.0011,2244.4,2243.2,4.45776986]
[1770138132281,0.0011,2244.4,2243.3,1.1143982]
[1770138132478,1.90497684,2244.4,2243.0,2.04855753]
[1770138132679,1.52664177,2244.2,2243.0,0.934]
[1770138132980,1.52664177,2244.3,2243.1,1.11449783]
[1770138133179,1.51993876,2244.2,2243.0,2.04857735]
[1770138133481,1.11400719,2244.2,2243.1,4.45810052]
[1770138133676,1.11398271,2244.2,2243.2,0.65066295]
[1770138134070,0.93054357,2244.1,2243.2,0.65066295]
[1770138134273,1.11396269,2244.3,2243.2,0.65066295]
[1770138134456,0.93026077,2244.2,2243.2,0.65066295]
[1770138134651,1.11394234,2244.3,2243.2,0.65066295]
[1770138134880,0.92995417,2244.2,2243.2,12.85577712]
[1770138135085,0.0011,2244.4,2243.2,12.85577712]
[1770138135390,0.0011,2245.3,2244.5,1.11383381]
[1770138135588,0.0011,2245.6,2244.6,0.94070301]
[1770138136483,0.0011,2245.6,2244.6,0.934]
[1770138137459,0.0011,2245.6,2244.7,1.11373457]
[1770138138277,0.0011,2245.6,2244.7,1.12043758]
[1770138138479,0.0011,2245.8,2244.8,0.00670301]
[1770138139066,0.0011,2245.8,2244.7,13.31884874]
[1770138139463,0.0011,2245.8,2244.7,13.32555175]
[1770138139690,0.0011,2245.8,2244.9,1.11363535]
[1770138140091,0.0011,2245.8,2244.8,2.98576958]
[1770138140387,0.0011,2246.0,2245.0,0.00670301]
[1770138140605,0.0011,2246.0,2245.1,0.00670301]
[1770138141389,0.0011,2246.0,2245.2,0.934]
[1770138141762,0.0011,2246.0,2245.2,2.69763391]
[1770138142386,0.0011,2246.0,2245.2,1.58417578]
[1770138142605,0.0011,2246.0,2245.2,2.04747859]
[1770138143195,0.0011,2246.0,2245.2,2.0541816]
[1770138143780,0.0011,2246.0,2245.2,1.11344821]
[1770138144006,0.0011,2246.2,2245.3,0.00670301]
[1770138144213,0.0011,2246.7,2245.3,11.88931048]
[1770138144526,13.2227571,2247.1,2245.4,1.39434617]
[1770138144807,12.11578545,2246.9,2245.2,2.04744821]
[1770138145012,12.11688545,2246.9,2245.2,2.04744821]
[1770138145216,0.00670301,2246.8,2245.2,2.04744821]
[1770138145397,12.10908244,2246.8,2245.2,2.04744821]
[1770138145597,1.11279266,2246.6,2245.2,2.04744821]
[1770138145792,0.55706663,2246.5,2245.3,0.65013944]
[1770138147682,1.11959474,2246.4,2245.2,2.04748547]
[1770138147993,1.11959474,2246.4,2245.1,1.11352717]
[1770138147994,0.00670301,2246.2,2245.1,1.11352717]
[1770138148200,0.00670301,2246.2,2244.7,0.934]
[1770138148381,12.10908244,2246.1,2244.7,0.934]
[1770138148586,1.30497855,2246.0,2244.9,1.11360986]
[1770138148907,1.30497855,2246.0,2245.0,1.11358155]
[1770138149499,1.30497855,2246.0,2245.2,1.11347738]
[1770138149811,1.11304038,2246.1,2244.8,1.11368496]
[1770138150194,1.11302821,2246.2,2244.8,1.65140238]
[1770138150389,1.11302821,2246.2,2244.8,1.11368496]
[1770138151013,1.66994636,2246.5,2245.1,11.88931048]
[1770138151309,1.11378229,2246.9,2245.7,0.00670301]
[1770138151514,1.11378229,2246.9,2245.8,0.934]
[1770138151708,0.0011,2246.9,2245.8,2.0471545]
[1770138152216,0.93288595,2246.8,2245.8,0.934]
[1770138152414,14.35346686,2246.7,2245.5,1.11333009]
[1770138152587,0.93255826,2246.6,2245.4,1.1133605]
[1770138152786,1.30497714,2246.7,2245.5,4.45321696]
[1770138152986,0.0011,2246.9,2245.4,4.45346745]
[1770138153304,0.00670301,2246.3,2245.2,4.18549069]
[1770138153491,6.14590036,2246.7,2245.3,1.11338744]
[1770138153685,1.11284219,2246.5,2245.3,1.11338744]
[1770138153888,0.93293918,2246.4,2245.2,5.29894634]
[1770138154090,18.26168581,2246.1,2244.5,1.11380154]
[1770138154293,2.75977806,2246.0,2244.7,1.1137304]
[1770138154616,2.75977806,2246.0,2244.7,4.45485137]
[1770138154617,1.82683888,2246.0,2244.7,4.45485137]
[1770138154824,13.22862764,2246.5,2245.1,1.11351566]
[1770138154988,0.93982295,2246.4,2245.1,1.11351566]
[1770138155189,0.93311994,2246.3,2245.0,1.11355276]
[1770138155390,0.93311994,2246.2,2245.0,1.11355276]
[1770138155589,0.93311994,2246.1,2245.0,1.11355276]
[1770138155790,0.93311994,2246.0,2245.1,0.55680332]
[1770138156122,1.11299082,2246.2,2244.6,1.11378419]
[1770138156417,13.04229126,2246.1,2244.6,1.11378419]
[1770138156720,0.93320882,2246.0,2244.6,1.11378419]
[1770138157106,1.11298066,2246.3,2244.9,0.00670301]
[1770138157306,0.93379827,2246.2,2245.4,0.001]
[1770138157619,0.0011,2246.2,2245.4,0.001]
[1770138158320,12.11018244,2246.2,2245.1,0.935]
[1770138158615,0.9350469,2246.1,2245.1,0.935]
[1770138158791,18.87375534,2246.2,2245.1,1.11453248]
[1770138158792,0.9350469,2246.0,2245.1,1.11453248]
[1770138158992,0.9350469,2246.0,2245.1,1.67142841]
[1770138158993,0.9350469,2245.9,2245.1,1.67142841]
[1770138159192,0.9350469,2245.9,2245.1,0.55789593]
[1770138159415,0.9350469,2245.8,2245.1,0.001]
[1770138159617,19.81440525,2245.7,2244.6,0.934]
[1770138159824,0.00670301,2245.4,2244.3,0.001]
[1770138160117,0.9350469,2245.3,2244.3,0.44733896]
[1770138160522,0.9350469,2245.2,2244.3,0.44733896]
[1770138160721,1.11333778,2245.5,2244.3,0.44733896]
[1770138160926,6.7635729,2245.2,2244.3,0.001]
[1770138161255,0.94199571,2245.1,2244.3,0.001]
[1770138161403,0.9352927,2245.0,2244.2,3.34839255]
[1770138161922,1.11363535,2244.9,2244.2,3.34839255]
[1770138162127,0.9352927,2244.8,2244.2,3.34839255]
[1770138162518,1.58563965,2244.8,2244.2,3.34839255]
[1770138162715,1.11363535,2244.9,2244.2,3.34839255]
[1770138162915,0.9383797,2244.8,2244.2,3.34839255]
[1770138163228,1.11363535,2244.9,2244.2,3.34839255]
[1770138163430,0.93905556,2244.8,2244.2,3.34839255]
[1770138163632,0.93905556,2244.7,2244.2,3.34839255]
[1770138163815,4.4545414,2245.1,2244.2,3.34839255]
[1770138164141,1.4776962,2245.0,2244.2,4.46236169]
[1770138164440,0.93884206,2244.9,2244.2,4.46236524]
[1770138164603,1.11353614,2245.1,2244.2,3.34839255]
[1770138164803,0.9386126,2245.0,2244.2,3.34839255]
[1770138165032,0.9386126,2244.9,2244.2,3.34839255]
[1770138165216,0.9386126,2244.8,2244.2,3.34839255]
[1770138165420,0.9386126,2244.7,2244.2,3.34839255]
[1770138165623,0.9386126,2244.6,2244.2,3.34839255]
[1770138165926,1.11353614,2245.1,2244.2,4.46236102]
[1770138166115,0.93833758,2245.0,2244.2,4.46236102]
[1770138166436,0.93833758,2244.9,2244.2,4.46236102]
[1770138166640,1.11353614,2245.1,2244.3,0.89183764]
[1770138166806,1.11341346,2245.4,2244.3,0.89183764]
[1770138168026,4.45337728,2245.5,2244.4,1.11388344]
[1770138168236,2.67763011,2245.7,2244.5,12.81660747]
[1770138168533,0.0011,2246.2,2245.1,0.00670301]
[1770138168534,1.11409543,2246.2,2245.1,0.00670301]
[1770138168831,0.0011,2246.2,2245.3,0.00670301]
[1770138169026,1.11409333,2246.2,2245.2,0.934]
[1770138169227,1.67080899,2246.2,2245.2,0.934]
[1770138169732,0.00670301,2245.8,2244.4,1.11388344]
[1770138169936,1.11313949,2245.9,2244.4,12.99649091]
[1770138170134,1.11313949,2245.9,2245.4,0.001]